Cogmind - Beta 9.2 @@@ ROGUE MODE // 2019.12.10 @ 22:54:18 Player: Cipherpunk Result: Destroyed by as-00972 with Assembled Blade Performance ------------- Evolutions (1) 500 Regions Visited (4) 800 Robots Destroyed (42) 210 Value Destroyed (940) 940 Prototype IDs (0) 0 Alien Tech Used (0) 0 Bonus (0) 0 TOTAL SCORE: 2450 Bonus ------- None Cogmind --------- Core Integrity 0/400 Matter 28/300 Energy 100/100 System Corruption 10% Temperature Cool (0) Movement Treading (230) Ox3 Location -9/Mines Parts ------- > --- POWER (1) -------- (None) > --- PROPULSION (3) --- Armored Treads > --- UTILITY (3) ------ High-capacity Storage Unit High-capacity Storage Unit > --- WEAPON (2) ------- (None) > --- INVENTORY (20) --- Ion Engine Armored Treads Armored Treads Armored Treads High-capacity Storage Unit High-capacity Storage Unit High-capacity Storage Unit Improved Sensor Array Advanced Targeting Computer Advanced Targeting Computer Improved Weapon Shielding Light Armor Plating Light Armor Plating Reflective Plating Heavy Assault Rifle Flak Cannon Flak Cannon Mini Grenade Launcher Peak State ------------ > --- POWER ------------ Improved Ion Engine > --- PROPULSION ------- Light Treads Light Treads Armored Treads > --- UTILITY ---------- High-capacity Storage Unit High-capacity Storage Unit Improved Weapon Shielding > --- WEAPON ----------- Flak Cannon Flak Cannon > --- INVENTORY -------- Ion Engine Light Ion Engine Light Treads High-capacity Storage Unit High-capacity Storage Unit High-capacity Storage Unit Propulsion Shielding Improved Weapon Shielding Light Armor Plating Light Armor Plating Beam Rifle Heavy Assault Rifle Flak Cannon Flak Cannon Mini Grenade Launcher Mining Claw [Rating: 20] Favorites ----------- Power Ion Engine Engine Ion Engine Propulsion Aluminum Leg Treads Light Treads Leg Aluminum Leg Wheel Wheel Utility Small Storage Unit Storage Small Storage Unit Protection Improved Weapon Shielding Weapon EM Pulse Gun Energy Gun EM Pulse Gun Ballistic Gun Assault Rifle Ballistic Cannon Flak Cannon Launcher Grenade Launcher Build | -11 -10 -10 -9 -9 ------- Run | Scr Mat Min Mat Min Slots Evolved 2 | . . . 2 . Power . | . . . . . Propulsion 1 | . . . 1 . Utility 1 | . . . 1 . Weapon . | . . . . . Parts Attached 50 | 9 15 3 21 2 Power 5 | 1 3 . 1 . Engine 5 | 1 3 . 1 . Core . | . . . . . Reactor . | . . . . . Propulsion 19 | 4 3 1 10 1 Treads 10 | 2 . . 7 1 Leg 6 | . 2 1 3 . Wheel 3 | 2 1 . . . Hover . | . . . . . Flight . | . . . . . Utility 7 | 1 1 . 4 1 Device . | . . . . . Storage 4 | 1 1 . 2 . Processor . | . . . . . Hackware . | . . . . . Protection 3 | . . . 2 1 Artifact . | . . . . . Weapon 19 | 3 8 2 6 . Energy Gun 11 | 2 5 1 3 . Energy Cannon . | . . . . . Ballistic Gun 2 | 1 1 . . . Ballistic Cannon 2 | . . . 2 . Launcher 4 | . 2 1 1 . Special Weapon . | . . . . . Impact Weapon . | . . . . . Slashing Weapon . | . . . . . Piercing Weapon . | . . . . . Special Melee Weapon . | . . . . . Unidentified Prototypes . | . . . . . Parts Lost 24 | . 6 . 10 8 Power 3 | . 1 . 1 1 Propulsion 9 | . 2 . 4 3 Utility 2 | . . . . 2 Weapon 10 | . 3 . 5 2 Highest Loss Streak 8 | . 5 . 4 8 Average Slot Usage (%) 94 | . 97 100 86 91 Engine 12 | . 13 14 9 5 Treads 7 | . . . 18 30 Leg 17 | . 16 28 8 . Wheel 2 | . 11 . . . Storage 25 | . 27 28 22 22 Protection 3 | . . . 8 11 Energy Gun 17 | . 20 27 6 . Ballistic Gun 1 | . 5 . . . Ballistic Cannon 4 | . . . 12 22 Naked Turns . | . . . . . Heaviest Build 86 | 9 21 21 86 85 Greatest Support 60 | 40 22 20 60 60 Greatest Overweight (x) 3 | . 1 1 2 3 Average Overweight (x) . | . . 1 1 1 Largest Inventory Capacity 20 | 6 10 10 20 20 Average Capacity 12 | 5 9 10 16 20 Most Carried 20 | 6 10 10 20 20 Average Carried 11 | 3 7 9 14 19 Final Capacity 20 | 6 10 10 20 20 Final Carried 20 | 6 8 10 20 18 Class Distribution -------------------- 71% | Mutant 21% | Hauler-Mutant 7% | Scavenger-Mutant Dominant Class ---------------- Mutant | -10/Materials Mutant | -10/Mines Hauler-Mutant | -9/Materials Hauler-Mutant | -9/Mines Resources | -11 -10 -10 -9 -9 ----------- Run | Scr Mat Min Mat Min Matter Collected 758 | 193 185 170 210 . Remotely . | . . . . . Salvage Created 1313 | . 501 126 671 15 Parts 96 | . 48 8 40 . Haulers Intercepted 2 | . 2 . . . Recyclers Shooed 1 | . . . 1 . Parts Field Recycled . | . . . . . Retrieved Matter . | . . . . . Parts Self-Destructed . | . . . . . Prevented . | . . . . . Kills | -11 -10 -10 -9 -9 ------- Run | Scr Mat Min Mat Min Combat Hostiles Destroyed 29 | . 13 5 9 2 Guns 14 | . 7 3 4 . Cannons 7 | . . . 5 2 AOE 8 | . 6 2 . . Classes Destroyed 10 | . 7 . 2 1 Worker 1 | . 1 . . . Builder 2 | . 2 . . . Hauler 2 | . 2 . . . Recycler 4 | . . . 4 . Operator 1 | . 1 . . . Watcher 3 | . 2 . 1 . Swarmer 9 | . 6 3 . . Grunt 12 | . 7 2 3 . Sentry 6 | . . . 6 . Assembled 2 | . . . . 2 Best Kill Streak 8 | . 8 3 3 2 Combat Bots Only 5 | . 5 3 2 2 Max Kills in Single Turn 3 | . 3 2 1 2 Gunslinging . | . . . . . Exploded 2 | . 2 2 . . Melee . | . . . . . Uniques/NPCs Destroyed . | . . . . . Combat | -11 -10 -10 -9 -9 -------- Run | Scr Mat Min Mat Min Damage Taken 3280 | . 815 100 1020 1345 Core 586 | . 172 10 174 230 Absorbed by Shields . | . . . . . Core Remaining (%) 63 | 100 . 27 . . Volleys Fired 103 | . 42 7 47 7 Largest 2 | . 2 2 2 2 Hottest 88 | . 80 80 88 88 Shots Fired 176 | . 73 13 76 14 Gun 118 | . 68 12 38 . Cannon 52 | . . . 38 14 Launcher 6 | . 5 1 . . Special . | . . . . . Kinetic 68 | . 16 . 38 14 Thermal 25 | . . . 25 . Explosive 6 | . 5 1 . . Electromagnetic 77 | . 52 12 13 . Robot Hit Streak 12 | . 10 4 12 4 Robot Miss Streak 7 | . 3 4 7 4 Penetration Max . | . . . . . Secondary Targets 1 | . 1 . . . Max Gunslinging Chain 1 | . 1 . . . Shots Hit Robots 127 | . 44 5 64 14 Core Hits 84 | . 31 6 36 11 Critical Hits . | . . . . . Critical Kills . | . . . . . Critical Parts Destroyed . | . . . . . Melee Attacks . | . . . . . Impact . | . . . . . Slashing . | . . . . . Piercing . | . . . . . Sneak Attacks . | . . . . . Combat Hostiles . | . . . . . Follow-up Attacks . | . . . . . Damage Inflicted 2425 | . 1147 192 917 169 Guns 954 | . 525 50 379 . Cannons 707 | . . . 538 169 Explosions 763 | . 622 141 . . Melee . | . . . . . Ramming 1 | . . 1 . . Kinetic 855 | . 148 . 538 169 Thermal 395 | . 108 65 222 . Explosive 590 | . 514 76 . . Electromagnetic 584 | . 377 50 157 . Impact . | . . . . . Slashing . | . . . . . Piercing . | . . . . . Highest Corruption 10 | . 1 1 2 10 Average Corruption 1 | . 1 1 2 3 Corruption Purged . | . . . . . Effects 15 | . 3 11 1 . Message Errors 4 | . . 4 . . Heat Flow Errors 1 | . . . 1 . Energy Discharges 3 | . . 3 . . Data Loss (minor) 4 | . 1 3 . . Targeting Errors 1 | . 1 . . . Weapon Failures 2 | . 1 1 . . Overload Shots . | . . . . . Overflow Damage 13 | . 9 4 . . Projectiles . | . . . . . Explosions 13 | . 9 4 . . Melee . | . . . . . Knockbacks 17 | . . . 9 8 Impact . | . . . . . Kinetic 16 | . . . 9 7 Secondary 1 | . . . . 1 Self-Inflicted Damage 71 | . 59 12 . . Shots 3 | . 2 1 . . Rammed . | . . . . . Targets Rammed 1 | . . 1 . . Kicked 1 | . . 1 . . Crushed . | . . . . . Highest Temperature 140 | . 92 72 122 140 Average Temperature 33 | . 31 40 21 84 Received Heat Transfer 809 | . 351 9 369 80 Siege Activations . | . . . . . Robots Corrupted . | . . . . . Combat Hostiles . | . . . . . Parts Fried 1 | . 1 . . . Impact Corruptions . | . . . . . Robots Melted . | . . . . . Combat Hostiles . | . . . . . Parts Melted 1 | . . . 1 . Heat Transferred 762 | . 150 100 512 . Parts Sabotaged . | . . . . . Parts Stolen . | . . . . . Parts Stripped . | . . . . . Power Chain Reactions 3 | . 2 1 . . Missiles Intercepted . | . . . . . Alert | -11 -10 -10 -9 -9 ------- Run | Scr Mat Min Mat Min Peak Influence 361 | . 361 136 105 54 Average Influence 92 | . 199 72 48 36 Maximum Alert Level 1 | . 1 . . . Low Security (%) 85 | 100 40 100 100 100 Level 1 14 | . 59 . . . Level 2 . | . . . . . Level 3 . | . . . . . Level 4 . | . . . . . Level 5 . | . . . . . High Security . | . . . . . Max Security . | . . . . . Squads Dispatched 8 | . 6 . 2 . Investigation 3 | . 3 . . . Extermination . | . . . . . Reinforcement 5 | . 3 . 2 . Assault . | . . . . . Garrison . | . . . . . Intercept . | . . . . . Construction Impeded . | . . . . . Haulers Reinforced . | . . . . . Stealth | -11 -10 -10 -9 -9 --------- Run | Scr Mat Min Mat Min Distress Signals 2 | . . . 2 . Communications Jammed . | . . . . . Distress Signals . | . . . . . Times Spotted 59 | . 21 5 18 15 Peak Tracking Total 12 | . 5 3 4 12 Tactical Retreats 2 | . 1 . . 1 Traps | -11 -10 -10 -9 -9 ------- Run | Scr Mat Min Mat Min Traps Triggered 2 | . 1 . 1 . Indirectly . | . . . . . Trap Hack Attempts . | . . . . . Triggered . | . . . . . Disarmed . | . . . . . Reprogrammed . | . . . . . Reused . | . . . . . Traps Extracted . | . . . . . Installed . | . . . . . Triggered . | . . . . . Machines | -11 -10 -10 -9 -9 ---------- Run | Scr Mat Min Mat Min Machines Disabled 3 | . 3 . . . Max in Single Turn 2 | . 2 . . . Machines Sabotaged . | . . . . . Garrisons Compromised . | . . . . . Overloaded Fab Kills . | . . . . . Fab Network Shutdowns . | . . . . . Hacking | -11 -10 -10 -9 -9 --------- Run | Scr Mat Min Mat Min Machines Accessed 13 | . 7 . 6 . Terminals 10 | . 5 . 5 . Fabricators . | . . . . . Repair Stations . | . . . . . Recycling Units 2 | . 2 . . . Scanalyzers 1 | . . . 1 . Garrison Access . | . . . . . Total Hacks 35 | . 19 . 16 . Successful 15 | . 7 . 8 . Failed 20 | . 12 . 8 . Catastrophic 4 | . 2 . 2 . Database Lockouts . | . . . . . Manual 25 | . 13 . 12 . Terminals 29 | . 15 . 14 . Fabricators . | . . . . . Repair Stations . | . . . . . Recycling Units 4 | . 4 . . . Scanalyzers 2 | . . . 2 . Garrison Access . | . . . . . Terminal Hacks 6 | . 3 . 3 . Record 1 | . . . 1 . Branch Access Points 1 | . . . 1 . Unreport Threat 1 | . . . 1 . Recall Investigation 1 | . 1 . . . Recall Reinforcements 1 | . 1 . . . Hauler Manifests 1 | . 1 . . . Fabricator Hacks . | . . . . . Repair Station Hacks . | . . . . . Recycling Unit Hacks 2 | . 2 . . . Retrieve Components 2 | . 2 . . . Scanalyzer 2 | . . . 2 . Insert Component 1 | . . . 1 . Analyze 1 | . . . 1 . Garrison Access Hacks . | . . . . . Unauthorized Hacks 11 | . 4 . 7 . Terminals 5 | . 2 . 3 . Botnet 5 | . 2 . 3 . Fabricators . | . . . . . Repair Stations . | . . . . . Recycling Units . | . . . . . Scanalyzers . | . . . . . Garrison Access . | . . . . . Data Cores Recovered . | . . . . . Used . | . . . . . Hacking Detections 10 | . 6 . 4 . Full Trace Events 5 | . 4 . 1 . Feedback Events 1 | . 1 . . . Corruption 1 | . 1 . . . Feedback Blocked . | . . . . . Robot Schematics Acquired . | . . . . . Robots Built . | . . . . . Matter . | . . . . . Time . | . . . . . Total Robot Build Rating . | . . . . . Part Schematics Acquired 1 | . . . 1 . Parts Built . | . . . . . Matter . | . . . . . Time . | . . . . . Total Part Build Rating . | . . . . . Parts Repaired . | . . . . . Time . | . . . . . Parts Recycled . | . . . . . Recycled Matter . | . . . . . Retrieved Matter . | . . . . . Retrieved Components 4 | . 4 . . . Parts Scanalyzed 1 | . . . 1 . Part Schematics Acquired 1 | . . . 1 . Parts Damaged . | . . . . . Bothacking | -11 -10 -10 -9 -9 ------------ Run | Scr Mat Min Mat Min Used RIF Installer . | . . . . . Robots Hacked . | . . . . . Non-combat . | . . . . . Combat . | . . . . . Robot Hacks Applied . | . . . . . Relay Couplers Released . | . . . . . Robots Rewired . | . . . . . Allies Hacked . | . . . . . Hacks Repelled . | . . . . . Allies | -11 -10 -10 -9 -9 -------- Run | Scr Mat Min Mat Min Total Allies . | . . . . . Largest Group . | . . . . . Highest-Rated Group . | . . . . . Highest-Rated Ally . | . . . . . Total Orders . | . . . . . Ally Attacks . | . . . . . Total Damage . | . . . . . Kills . | . . . . . Allies Corrupted . | . . . . . Allies Melted . | . . . . . Intel | -11 -10 -10 -9 -9 ------- Run | Scr Mat Min Mat Min Robot Analysis Total . | . . . . . Derelict Logs Recovered 1 | . . 1 . . Drone Launches . | . . . . . Drone Recoveries . | . . . . . Exploration | -11 -10 -10 -9 -9 ------------- Run | Scr Mat Min Mat Min Turns Passed 2845 | 77 689 1041 996 42 Spaces Moved 1592 | 50 458 637 437 10 Core 5 | 5 . . . . Treads 325 | 23 . . 292 10 Legs 1002 | . 220 637 145 . Wheels 260 | 22 238 . . . Hover . | . . . . . Flight . | . . . . . Fastest Speed 50 | 50 80 150 120 180 Average Speed 144 | 113 112 150 170 187 Slowest Speed 230 | 160 150 150 200 230 Overloaded Moves . | . . . . . Propulsion Burnouts . | . . . . . Robots Hopped . | . . . . . Cave-ins Triggered . | . . . . . Exploration Rate (%) 46 | 4 84 99 40 7 Regions Visited 4 Branch Regions 2 Pre-discovered Areas . | . . . . . Known Exits Taken 1 | . . . 1 . Unknown Exits Taken 3 | 1 1 1 . . Scrap Searched 3 | . . 3 . . Spaces Dug . | . . . . . Terrain Destroyed 18 | . 8 10 . . Melee . | . . . . . Projectile . | . . . . . AOE 18 | . 8 10 . . Actions | -11 -10 -10 -9 -9 --------- Run | Scr Mat Min Mat Min Total 1963 | 65 557 707 615 19 Wait 150 | . 24 59 67 . Move 1588 | 49 457 636 436 10 Hop . | . . . . . Pick Up 45 | 7 11 1 26 . Fast Attach 18 | 5 5 . 8 . Attach 15 | 1 6 . 6 2 Detach 2 | . . . 2 . Swap 17 | 3 4 3 7 . Drop 24 | . 8 . 16 . Fire 103 | . 42 7 47 7 Melee . | . . . . . Ram . | . . . . . Kick 1 | . . 1 . . Crush . | . . . . . Escape Stasis . | . . . . . Rewire . | . . . . . Trap . | . . . . . Miscellaneous . | . . . . . Route ------- -11/Scrapyard -10/Materials (discovered 3 exits: *Mat x2 / [*Min]) -10/Mines (discovered 2 exits: *Mat x2) -9/Materials (discovered 3 exits: [*Mat] / *Min x2) -9/Mines History --------- Turn | Location | Event 13 | -11/Scrapyard | Discovered new exit (range 15) 78 | -11/Scrapyard | Entered Materials 129 | -10/Materials | Discovered new exit (range 8) 155 | -10/Materials | Discovered new exit (range 15) 300 | -10/Materials | Build established: Mutant 308 | -10/Materials | Discovered new exit (range 13) 367 | -10/Materials | Core integrity fell below 50% 403 | -10/Materials | Lost 5 parts (1p2n2w) 767 | -10/Materials | Entered Mines 824 | -10/Mines | Learned Materials stockpile data 1266 | -10/Mines | Discovered new exit (range 2) 1581 | -10/Mines | Discovered new exit (range 8) 1808 | -10/Mines | Entered Materials 1808 | -9/Materials | Evolved 2 slots: Propulsion x1, Utility x1 1845 | -9/Materials | Discovered new exit (range 13) 1948 | -9/Materials | Lost 4 parts (1p1n2w) 2056 | -9/Materials | Lost 3 parts (2n1w) 2505 | -9/Materials | Discovered new exit (range 5) 2561 | -9/Materials | Identified exit to Mines 2564 | -9/Materials | Build established: Hauler-Mutant 2804 | -9/Materials | Entered Mines 2805 | -9/Mines | Assembled infested the area 2829 | -9/Mines | Core integrity fell below 50% 2841 | -9/Mines | Core integrity fell below 20% 2845 | -9/Mines | System corruption reached 10% 2846 | -9/Mines | Destroyed by as-00972 with Assembled Blade Last Messages --------------- Something is scanning the area. 02805_ ALERT: Infestation in the mines, dispatching Demolisher response squad. 02815_ as-46449 knocked back. 02818_ as-12077 knocked back. 02824_ as-18997 knocked back. 02824_ Imp. Weapon Shielding destroyed. 02825_ Imp. Ion Engine destroyed. 02828_ as-13252 knocked back. 02828_ as-81006 destroyed. 02828_ as-46449 destroyed. 02830_ Lgt. Treads destroyed. 02832_ as-13252 knocked back. 02834_ Lgt. Treads destroyed. 02834_ System corrupted by crushing effect (+4). 02843_ Flak Cannon destroyed. 02844_ Lgt. Treads destroyed. 02844_ System corrupted by crushing effect (+4). 02845_ Flak Cannon destroyed. 02845_ Reflective Plating destroyed. Map ----- +----------------------------------------------------+ | | | | | | | | | | | | | | | | | | | | | ????????????????????????????????????????? | | ??????????????????????????###???????????? | | ?????????????????????????? ???????????? | | ?????????????????????????? ???????????? | | ?????????????????????????? ???????????? | | ?????????????????????????? """?????????? | | ?????????????????????????? """?????????? | | ?????????????????????????? """?????????? | | ????????????????????????## ??????????? | | ???????????????????????## ???????????? | | ?????????????#?????????# a #???????????? | | ?????????????# ????????# #???????????? | | ?????????????# ????????# #????????????? | | ?????????????# ??????## #????????????? | | ????????????## ????##aaaa#????????????? | | ???????????## ???# aa@#?????????????? | | ???????????# % #### aa#?????????????? | | ???????????# % aa ##?????????????? | | ??????????# a #??????????????? | | ?????# ### ##??????????????? | | ????# ????# #???????????????? | | ????? ??????# #??????????????? | | ????????????????????# #??????????????? | | ????????????????????# #??????????????? | | ????????????????????## ##??????????????? | | ?????????????????????####???????????????? | | ????????????????????????????????????????? | | ????????????????????????????????????????? | | ????????????????????????????????????????? | | ????????????????????????????????????????? | | ????????????????????????????????????????? | | ????????????????????????????????????????? | | ????????????????????????????????????????? | | ????????????????????????????????????????? | | ????????????????????????????????????????? | | ????????????????????????????????????????? | | ????????????????????????????????????????? | | ????????????????????????????????????????? | | ????????????????????????????????????????? | | ????????????????????????????????????????? | +----------------------------------------------------+ Best States ------------- Heat Dissipation 28 Energy Generation 12 Energy Capacity 265 Matter Stores 300 Matter Capacity 300 Sight Range 16 Terrain Scan Density 10 Armor Coverage 150 Resistance: TH 10 Weapon Shielding 66 Evasion (%) 44 Recoil Reduction 3 Item Schematics ----------------- Adv. Targeting Computer | -9/Materials | Scanalyzed Robot Schematics ------------------ None Fabricated ------------ Nothing Alien Tech Used ----------------- None Achievements -------------- None Challenges ------------ None Game ------ Seed ReactiveTractorExtractor Manual? 0 Play Time 00:25:03 Cumulative 51.3 hours Start 2019.12.10 @ 22:29:48 End 2019.12.10 @ 22:54:18 Sessions 1 Manual Loads 0 Difficulty Rogue Special Mode None Game No. 48 Rogue 48 Adventurer 0 Explorer 0 Win Type - Total 0 Types 0/0/0/0/0/0/0 Lore% 23 Gallery% 43 Achievement% 28 Wizard Run 0 Options --------- ASCII 0 Keyboard 1 Movement Numpad Keybinds 0 Fullscreen 2 Font 18/SmallcapsGlow Map View 76x50 Tactical HUD 1 Map Filters NONE Filters NONE Steam 1 RUN: 74807b3e-0616-4406-b8eb-738604a1235c